bitfinex/quotes_SOLUSD_20250129
["timestamp","ask_amount","ask_price","bid_price","bid_amount"]
[1738154395867,12.52609466,229.47,229.43,30.03]
[1738154396071,12.52609466,229.48,229.43,30.03]
[1738154397093,12.52609466,229.47,229.43,30.03]
[1738154398201,4.358,229.46,229.43,30.03]
[1738154400171,12.52609466,229.45,229.43,30.03]
[1738154400972,12.49603889,229.45,229.43,30.03]
[1738154402078,12.52609466,229.46,229.43,30.03]
[1738154403278,12.52609466,229.45,229.43,30.03]
[1738154404893,12.52609466,229.46,229.43,30.03]
[1738154405973,32.52609466,229.44,229.43,0.03]
[1738154407402,12.52609466,229.44,229.43,0.03]
[1738154407789,16.94719466,229.46,229.43,30.03]
[1738154408179,4.4211,229.46,229.43,30.03]
[1738154409183,0.063,229.46,229.43,30.03]
[1738154409384,4.4211,229.46,229.43,30.03]
[1738154410904,0.063,229.46,229.45,12.65158466]
[1738154411100,0.063,229.46,229.45,36.67944866]
[1738154411701,0.063,229.46,229.45,49.33103332]
[1738154411889,0.063,229.46,229.45,53.68923332]
[1738154413406,0.063,229.46,229.45,41.16313866]
[1738154413787,0.063,229.46,229.45,12.65158466]
[1738154414095,0.063,229.46,229.44,1.5859]
[1738154415112,0.063,229.46,229.43,42.55609466]
[1738154416315,0.063,229.46,229.44,12.52609466]
[1738154416487,0.063,229.46,229.45,12.65158466]
[1738154417307,0.063,229.46,229.45,17.00978466]
[1738154417895,0.063,229.46,229.45,12.52609466]
[1738154418209,0.063,229.46,229.45,12.65158466]
[1738154418408,0.063,229.46,229.45,17.00978466]
[1738154419794,0.063,229.46,229.45,41.16313866]
[1738154420191,0.063,229.46,229.45,57.31503332]
[1738154420393,0.063,229.46,229.45,63.31873332]
[1738154421631,0.0001,229.46,229.45,63.31873332]
[1738154422500,0.063,229.54,229.53,30.12549]
[1738154422694,0.063,229.54,229.53,42.65158466]
[1738154424716,0.063,229.54,229.53,47.00828466]
[1738154427817,0.063,229.54,229.53,71.03614866]
[1738154428127,0.063,229.54,229.53,47.00828466]
[1738154429102,0.063,229.54,229.53,71.16163866]
[1738154431100,0.063,229.54,229.53,78.74803866]
[1738154431402,0.063,229.54,229.53,48.50838466]
[1738154431607,0.063,229.54,229.53,42.65158466]
[1738154432413,0.063,229.54,229.53,47.00828466]
[1738154432620,0.063,229.54,229.53,71.16163866]
[1738154433413,0.063,229.54,229.53,30.0]
[1738154435795,0.063,229.54,229.53,54.153354]
[1738154436019,0.063,229.54,229.53,58.510054]
[1738154436422,0.063,229.54,229.53,58.635544]
[1738154439299,0.063,229.54,229.53,30.12549]
[1738154447725,0.063,229.54,229.53,58.510054]
[1738154447928,0.063,229.54,229.53,58.635544]
[1738154451837,0.063,229.54,229.53,30.12549]
[1738154452020,0.063,229.54,229.53,42.65158466]
[1738154452218,0.063,229.54,229.53,30.12549]
[1738154452632,0.063,229.54,229.53,42.65158466]
[1738154453146,0.063,229.54,229.53,47.00828466]
[1738154453943,0.063,229.54,229.53,71.03614866]
[1738154455044,0.063,229.54,229.53,71.16163866]
[1738154457416,0.063,229.54,229.53,71.03614866]
[1738154459551,0.063,229.54,229.53,42.65158466]
[1738154460533,0.063,229.54,229.53,38.14451014]
[1738154464126,0.063,229.54,229.53,8.14451014]
[1738154467348,0.063,229.54,229.53,36.52907414]
[1738154469354,0.063,229.54,229.53,32.17237414]
[1738154469851,0.063,229.54,229.53,30.0]
[1738154470056,4.4195,229.54,229.53,30.0]
[1738154471948,0.063,229.54,229.53,30.0]
[1738154475355,0.063,229.54,229.53,30.12549]
[1738154478561,0.063,229.54,229.53,66.52907414]
[1738154479459,0.063,229.54,229.53,66.65456414]
[1738154486054,0.063,229.54,229.53,62.17237414]
[1738154486258,0.063,229.54,229.53,54.153354]
[1738154486956,0.063,229.54,229.53,62.17237414]
[1738154489954,0.063,229.54,229.53,66.65456414]
[1738154491983,0.063,229.54,229.53,67.65456414]
[1738154493378,0.063,229.54,229.53,67.68456414]
[1738154494563,0.063,229.6,229.59,30.50196]
[1738154494776,0.063,229.6,229.59,62.29786414]
[1738154495869,0.063,229.6,229.59,66.65336414]
[1738154504990,0.063,229.6,229.51,1.76753482]
[1738154505167,0.063,229.6,229.39,27.15783873]
[1738154505168,1.0,229.4,229.39,27.15783873]
[1738154505370,1.0,229.4,229.39,0.64703873]
[1738154505371,2.0,229.4,229.39,0.64703873]
[1738154505968,2.0,229.4,229.39,3.873e-05]
[1738154506172,1.0,229.36,229.35,3.873e-05]
[1738154506372,22.0,229.34,229.33,17.43009682]
[1738154506681,30.57470702,229.34,229.33,9.682e-05]
[1738154507073,33.75326081,229.34,229.33,9.682e-05]
[1738154507588,2.0,229.32,229.24,0.03]
[1738154507793,8.44921702,229.31,229.24,0.03]
[1738154507990,8.44921702,229.31,229.25,312.0]
[1738154507991,8.01902014,229.31,229.25,312.0]
[1738154508291,3.17207826,229.31,229.25,312.0]
[1738154508472,13.60830095,229.31,229.24,8.04902014]
[1738154508672,13.60830095,229.31,229.24,12.59030103]
[1738154509587,17.05909633,229.31,229.24,12.59030103]
[1738154509780,9.80142743,229.31,229.24,12.59030103]
[1738154509980,22.36172846,229.31,229.24,0.03]
[1738154510501,9.80142743,229.31,229.24,42.59030103]
[1738154510899,12.38074448,229.31,229.24,42.59030103]
[1738154511204,9.20219069,229.31,229.24,42.59030103]
[1738154511413,9.20219069,229.31,229.3,312.03]
[1738154511786,10.20219069,229.31,229.3,312.03]
[1738154511995,9.20219069,229.31,229.3,312.03]
[1738154512385,3.54725909,229.31,229.27,30.0]
[1738154512601,1.0,229.3,229.27,30.0]
[1738154513190,2.54725909,229.31,229.3,30.25098]
[1738154513394,2.54725909,229.31,229.3,342.25098]
[1738154513724,2.54725909,229.31,229.3,354.81128103]
[1738154514006,2.54725909,229.31,229.3,342.25098]
[1738154514511,1.0,229.33,229.3,342.25098]
[1738154514882,2.0,229.33,229.3,30.25098]
[1738154515100,1.0,229.31,229.26,42.56030103]
[1738154515681,6.6549316,229.3,229.27,24.153354]
[1738154515888,6.6549316,229.3,229.28,12.56030103]
[1738154516791,13.30986321,229.3,229.28,12.56030103]
[1738154516985,1.0,229.27,229.24,0.03]
[1738154517193,2.0,229.27,229.24,0.03]
[1738154517393,2.0,229.27,229.22,4.4824]
[1738154517598,6.6237626,229.25,229.22,0.24549]
[1738154517891,6.6237626,229.25,229.24,312.0]
[1738154518296,2.0,229.25,229.24,312.0]
[1738154518508,2.0,229.23,229.22,0.12]
[1738154518879,1.0,229.23,229.22,0.12]
[1738154519083,2.0,229.23,229.22,0.12]
[1738154520421,14.56030103,229.23,229.22,0.12]
[1738154520922,1.0,229.2,229.15,16.92410103]
[1738154521087,1.0,229.19,229.15,12.56030103]
[1738154521785,1.0,229.21,229.15,12.56030103]
[1738154521984,1.0,229.2,229.16,12.56030103]
[1738154522196,2.0,229.2,229.16,12.56030103]
[1738154522417,2.0,229.22,229.17,16.92380103]
[1738154522585,2.0,229.22,229.19,12.56030103]
[1738154522916,1.0,229.21,229.18,12.56030103]
[1738154523120,1.0,229.21,229.17,16.92380103]
[1738154524189,1.0,229.21,229.16,36.33718503]
[1738154524387,1.0,229.21,229.15,16.92400103]
[1738154524602,2.0,229.19,229.15,4.3637]
[1738154524997,2.0,229.19,229.16,12.56030103]
[1738154525284,1.0,229.17,229.15,4.3637]
[1738154525488,1.0,229.17,229.15,12.56030103]
[1738154525785,1.0,229.18,229.16,12.56030103]
[1738154525990,1.0,229.2,229.17,12.68579103]
[1738154526205,1.0,229.2,229.19,12.56030103]
[1738154526616,1.0,229.2,229.18,12.56030103]
[1738154527305,1.0,229.2,229.19,12.56030103]
[1738154528007,1.0,229.21,229.19,12.56030103]
[1738154528213,1.0,229.21,229.2,12.56030103]
[1738154528396,2.0,229.15,229.14,51.8]
[1738154529195,1.0,229.13,229.07,0.03]
[1738154529403,2.0,229.13,229.12,12.56030103]
[1738154529996,2.0,229.15,229.12,12.56030103]
[1738154530202,1.0,229.17,229.14,12.56030103]
[1738154530511,1.0,229.17,229.16,12.56030103]
[1738154531514,1.0,229.18,229.16,12.56030103]
[1738154531719,1.0,229.18,229.17,12.56030103]
[1738154533492,3.50039269,229.18,229.17,12.56030103]
[1738154533818,2.0,229.16,229.1,23.776884]
[1738154534317,1.0,229.12,229.07,0.03]
[1738154534615,2.0,229.12,229.08,4.3652]
[1738154534817,2.0,229.12,229.07,20.03]
[1738154534818,1.0,229.08,229.07,0.03]
[1738154534999,2.0,229.08,229.07,0.03]
[1738154536313,1.0,229.09,229.07,12.59030103]
[1738154536509,7.49225603,229.08,229.07,12.59030103]
[1738154537098,6.49225603,229.08,229.07,12.59030103]
[1738154537715,8.49225603,229.08,229.07,12.59030103]
[1738154538424,6.49225603,229.08,229.07,12.59030103]
[1738154538629,7.49225603,229.08,229.07,12.59030103]
[1738154539212,9.61343415,229.08,229.07,12.59030103]
[1738154540306,5.61819967,229.08,229.07,12.59030103]
[1738154540616,2.49702155,229.08,229.07,12.59030103]
[1738154541125,2.49702155,229.08,229.07,16.95570103]
[1738154541304,3.49702155,229.08,229.07,12.59030103]
[1738154541512,2.49702155,229.08,229.07,12.59030103]
[1738154542103,1.0,229.09,229.07,12.59030103]
[1738154542409,1.0,229.08,229.07,12.59030103]
[1738154543023,1.0,229.08,229.07,12.56030103]
[1738154544206,7.4957868,229.08,229.07,12.56030103]
[1738154544412,10.62524978,229.08,229.07,12.56030103]
[1738154545017,14.55394978,229.08,229.07,12.56030103]
[1738154545208,1.0,229.06,229.05,12.56030103]
[1738154545409,2.0,229.04,229.03,12.56030103]
[1738154546218,5.12946298,229.04,229.03,12.56030103]
[1738154546426,11.62524978,229.04,229.03,12.56030103]
[1738154546623,11.62524978,229.04,228.99,0.03]
[1738154546624,2.0,229.0,228.99,0.03]
[1738154546826,2.0,229.0,228.99,12.59030103]
[1738154547499,2.0,229.0,228.99,0.03]
[1738154547698,16.64531817,229.0,228.99,0.03]
[1738154548105,19.78698521,229.0,228.99,0.03]
[1738154549418,21.53310277,229.0,228.99,0.03]
[1738154551438,24.01177665,229.0,228.99,0.03]
[1738154552913,19.78698521,229.0,228.99,0.03]
[1738154554830,19.78698521,229.0,228.96,12.56030103]
[1738154555126,1.0,228.97,228.96,12.56030103]
[1738154556605,4.14166704,228.97,228.96,12.56030103]
[1738154557114,4.14166704,228.97,228.94,12.56030103]
[1738154557115,2.0,228.95,228.94,12.56030103]
[1738154557930,5.14166704,228.95,228.94,12.56030103]
[1738154559437,7.63868859,228.95,228.94,12.56030103]
[1738154560433,2.0,228.93,228.92,12.56030103]
[1738154560629,1.0,228.9,228.89,12.56030103]
[1738154560833,2.0,228.9,228.89,12.56030103]
[1738154562538,2.0,228.92,228.89,16.92920103]
[1738154562842,1.0,228.96,228.92,23.902374]
[1738154563017,1.0,228.96,228.94,12.56030103]
[1738154564516,1.0,228.96,228.93,7.7207]
[1738154564517,1.0,228.99,228.95,12.56030103]
[1738154564716,1.0,228.99,228.98,12.56030103]
[1738154565844,2.0,228.99,228.98,12.56030103]
[1738154567342,2.0,228.99,228.98,12.59030103]
[1738154567539,2.0,228.99,228.98,0.03]
[1738154568032,5.4936,228.99,228.98,0.03]
[1738154568423,21.21320948,228.99,228.98,0.03]
[1738154568639,23.74057638,228.99,228.98,0.03]
[1738154569532,23.74057638,228.99,228.98,0.0001]
[1738154569739,52.72590149,228.99,228.98,0.0001]
[1738154569935,61.42285407,228.99,228.98,0.0001]
[1738154570341,37.52048007,228.99,228.98,0.0001]
[1738154571325,61.42285407,228.99,228.98,0.0001]
[1738154571628,37.52048007,228.99,228.98,0.0001]
[1738154572039,33.04470863,228.99,228.98,0.0001]
[1738154572351,58.19806263,228.99,228.98,0.0001]
[1738154572558,88.19806263,228.99,228.98,0.0001]
[1738154572850,87.76786575,228.99,228.98,0.0001]
[1738154573724,0.12549,228.97,228.85,12.56030103]
[1738154573926,2.0,228.87,228.86,12.56030103]
[1738154574143,1.0,228.89,228.86,12.56030103]
[1738154574547,1.0,228.88,228.84,4.3998]
[1738154575048,1.0,228.88,228.87,12.56030103]
[1738154575849,1.0,228.88,228.87,16.92950103]
[1738154576354,1.0,228.91,228.87,16.92950103]
[1738154576535,4.213734,228.96,228.91,7.79699]
[1738154576733,4.213734,228.96,228.95,12.56030103]
[1738154578538,7.38187638,228.96,228.95,12.56030103]
[1738154578735,2.0,228.95,228.93,12.56030103]
[1738154578940,2.0,228.93,228.92,12.56030103]
[1738154579454,2.0,228.93,228.91,12.56030103]
[1738154579774,2.0,228.93,228.92,12.56030103]
[1738154580337,2.0,228.93,228.91,12.56030103]
[1738154581034,8.5938291,228.93,228.91,12.56030103]
[1738154581641,1.0,228.88,228.87,12.59030103]
[1738154581850,1.0,228.88,228.87,0.03]
[1738154582341,1.0,228.88,228.87,12.59030103]
[1738154582733,3.5345139,228.88,228.87,12.59030103]
[1738154582929,6.70739977,228.88,228.87,12.59030103]
[1738154583433,6.70739977,228.88,228.87,0.03]
[1738154584040,5.70739977,228.88,228.87,12.59030103]
[1738154584243,9.76885536,228.88,228.87,12.59030103]
[1738154584546,10.76885536,228.88,228.87,12.59030103]
[1738154584758,11.76885536,228.88,228.87,12.59030103]
[1738154585657,10.76885536,228.88,228.87,12.59030103]
[1738154585858,6.70739977,228.88,228.87,12.59030103]
[1738154586054,5.70739977,228.88,228.87,16.95950103]
[1738154587267,2.5345139,228.88,228.87,16.95950103]
[1738154587446,2.5345139,228.88,228.87,40.86187503]
[1738154587649,6.60022369,228.91,228.87,40.86187503]
[1738154587837,6.60022369,228.91,228.9,16.92900103]
[1738154588346,6.60022369,228.91,228.9,12.56030103]
[1738154589363,1.0,228.92,228.9,12.56030103]
[1738154590939,1.0,228.91,228.9,12.56030103]
[1738154591340,2.0,228.92,228.9,12.56030103]
[1738154591636,1.0,228.92,228.9,12.56030103]
[1738154592339,2.54636981,228.91,228.9,12.56030103]
[1738154593460,2.54636981,228.91,228.9,61.74806606]
[1738154594150,2.54636981,228.91,228.9,61.87355606]
[1738154595239,5.07539329,228.97,228.91,30.0]
[1738154595438,5.07539329,228.97,228.96,12.56030103]
[1738154596761,1.0,228.97,228.96,12.56030103]
[1738154597143,4.18405284,228.97,228.96,12.56030103]
[1738154597544,3.18405284,228.97,228.96,12.56030103]
[1738154598836,3.18405284,228.97,228.96,16.92780103]
[1738154599237,3.18405284,228.97,228.96,40.83017503]
[1738154599454,3.18405284,228.97,228.96,41.08115503]
[1738154599960,0.063,228.98,228.97,54.027864]
[1738154600159,0.063,228.98,228.97,66.58816503]
[1738154600744,0.063,228.98,228.97,70.95546503]
[1738154601545,0.063,228.98,228.97,16.92760103]
[1738154602969,0.063,228.98,228.97,12.56030103]
[1738154603153,1.063,228.98,228.97,12.56030103]
[1738154604073,0.063,228.98,228.97,17.05309103]
[1738154604449,3.24400805,228.98,228.97,47.42956103]
[1738154606158,3.24400805,228.98,228.97,47.17858103]
[1738154606669,3.24400805,228.98,228.97,71.20644503]
[1738154607572,0.063,228.98,228.97,71.20644503]
[1738154609273,0.063,228.98,228.97,40.82997503]
[1738154609986,0.063,228.98,228.97,70.95546503]
[1738154610165,0.063,228.98,228.97,71.20644503]
[1738154611548,2.0,229.06,229.01,20.0]
[1738154611865,1.0,229.06,229.05,12.56030103]
[1738154612069,1.0,229.1,229.05,12.56030103]
[1738154612276,1.063,229.09,229.06,12.56030103]
[1738154612777,3.24314636,229.07,229.06,12.56030103]
[1738154613280,3.24314636,229.07,229.06,16.92590103]
[1738154613968,0.063,229.07,229.06,16.92590103]
[1738154619082,0.063,229.07,229.06,40.82827503]
[1738154622486,0.063,229.07,229.06,41.20474503]
[1738154622882,0.063,229.09,229.08,86.83914503]
[1738154623188,1.0,229.17,229.08,86.83914503]
[1738154623189,1.0,229.17,229.15,12.56030103]
[1738154623388,1.0,229.17,229.16,12.56030103]
[1738154623775,1.0,229.16,229.15,12.56030103]
[1738154624582,3.53513587,229.16,229.15,12.56030103]
[1738154625093,3.53513587,229.16,229.15,16.92420103]
[1738154626380,1.0,229.16,229.15,16.92420103]
[1738154627677,1.0,229.16,229.13,12.56030103]
[1738154627883,1.0,229.16,229.12,16.92470103]
[1738154628084,1.0,229.14,229.12,12.56030103]
[1738154628696,1.0,229.14,229.13,8.04927005]
[1738154629085,2.0,229.11,229.1,8.04927005]
[1738154629797,1.0,229.11,229.1,8.04927005]
[1738154629993,1.0,229.11,229.1,12.41417005]
[1738154630181,2.0,229.11,229.1,12.41417005]
[1738154630386,2.0,229.15,229.1,12.41417005]
[1738154630582,2.0,229.15,229.14,12.57415426]
[1738154631807,5.1692717,229.15,229.13,12.57415426]
[1738154632178,5.1692717,229.15,229.12,12.57415426]
[1738154632384,1.0,229.11,229.1,12.57415426]
[1738154632586,1.0,229.09,229.08,12.57415426]
[1738154632881,2.0,229.09,229.08,12.57415426]
[1738154633778,2.0,229.09,229.08,16.93935426]
[1738154635078,2.0,229.09,229.08,12.57415426]
[1738154635391,2.0,229.04,229.03,12.57415426]
[1738154635579,2.0,229.04,229.0,4.3668]
[1738154635580,1.0,229.01,229.0,12.57415426]
[1738154635780,1.0,229.01,229.0,16.94095426]
[1738154636604,1.0,229.02,229.0,16.94095426]
[1738154636780,1.0,229.03,229.01,12.57415426]
[1738154636981,1.0,229.03,229.02,12.57415426]
[1738154637195,0.97050491,229.03,229.02,12.57415426]
[1738154639288,3.50908316,229.03,229.02,12.57415426]
[1738154639793,6.68202181,229.03,229.02,12.57415426]
[1738154641008,6.68202181,229.03,229.02,12.60415426]
[1738154642509,6.68202181,229.03,229.02,16.97055426]
[1738154642898,5.7115169,229.03,229.02,16.97055426]
[1738154643492,2.53857825,229.03,229.02,16.97055426]
[1738154644092,0.97050491,229.05,229.02,16.97055426]
[1738154644411,1.0,229.04,229.02,4.3964]
[1738154644707,1.0,229.04,229.02,0.03]
[1738154645304,4.17723346,229.04,229.03,12.57415426]
[1738154645491,3.17723346,229.04,229.03,12.57415426]
[1738154646208,2.6187,229.12,229.06,20.0]
[1738154646209,1.0,229.12,229.06,20.0]
[1738154646414,1.0,229.12,229.11,12.57415426]
[1738154646803,1.0,229.12,229.11,16.93885426]
[1738154648416,7.61284583,229.12,229.11,16.93885426]
[1738154649397,6.61284583,229.12,229.11,16.93885426]
[1738154649607,6.61284583,229.12,229.11,40.84122826]
[1738154649823,1.063,229.16,229.15,0.12549]
[1738154649824,0.063,229.16,229.15,0.12549]
[1738154650130,0.063,229.16,229.15,40.96591826]
[1738154651220,0.063,229.16,229.15,41.21689826]
[1738154651420,0.063,229.16,229.15,40.96591826]
[1738154651604,0.063,229.16,229.15,16.93805426]
[1738154651807,2.03350491,229.16,229.15,16.93805426]
[1738154652822,1.03350491,229.16,229.15,16.93805426]
[1738154653121,0.063,229.16,229.15,16.93805426]
[1738154653507,1.063,229.16,229.15,16.93805426]
[1738154654419,0.063,229.16,229.15,16.93805426]
[1738154654718,1.063,229.16,229.15,16.93805426]
[1738154656329,0.063,229.16,229.15,16.93805426]
[1738154657028,0.063,229.16,229.15,17.06354426]
[1738154657213,0.063,229.16,229.15,17.44001426]
[1738154659428,0.063,229.21,229.2,20.12549]
[1738154659604,0.063,229.21,229.2,49.945874]
[1738154660131,0.063,229.22,229.21,54.027864]
[1738154660330,0.063,229.22,229.21,79.17617252]
[1738154660510,0.063,229.22,229.21,42.69964426]
[1738154660709,0.063,229.22,229.21,12.57415426]
[1738154661731,0.063,229.22,229.21,16.93695426]
[1738154662230,0.063,229.22,229.21,12.57415426]
[1738154662616,0.063,229.22,229.21,54.57415426]
[1738154663428,0.063,229.22,229.21,58.93695426]
[1738154664536,0.063,229.22,229.21,82.83932826]
[1738154664716,1.03350491,229.22,229.21,58.93695426]
[1738154666045,0.063,229.22,229.21,82.83932826]
[1738154670736,0.063,229.22,229.21,82.83932826]
[1738154676143,0.063,229.22,229.21,58.93695426]
[1738154676440,2.03350491,229.22,229.21,42.0]
[1738154676814,2.03350491,229.22,229.21,42.03]
[1738154677640,2.03350491,229.22,229.21,46.3928]
[1738154678328,0.063,229.22,229.21,46.3928]
[1738154679642,0.063,229.22,229.21,70.295174]
[1738154680029,0.063,229.22,229.21,82.99481826]
[1738154682036,0.063,229.22,229.21,83.24579826]
[1738154682336,0.063,229.23,229.22,30.37647]
[1738154682538,0.0001,229.23,229.22,82.50715252]
[1738154682740,0.063,229.3,229.25,20.0]
[1738154682923,0.063,229.3,229.29,12.57415426]
[1738154683335,1.97050491,229.29,229.27,12.57415426]
[1738154683536,0.97050491,229.27,229.26,12.57415426]
[1738154684143,1.97050491,229.29,229.26,16.93585426]
[1738154684350,1.97050491,229.29,229.28,12.57415426]
[1738154686374,1.97050491,229.24,229.23,12.57415426]
[1738154686531,1.97050491,229.24,229.22,12.57415426]
[1738154687948,1.97050491,229.22,229.21,42.03]
[1738154690254,1.97050491,229.22,229.21,54.60415426]
[1738154691832,1.97050491,229.22,229.21,42.03]
[1738154692032,4.58800491,229.22,229.21,42.03]
[1738154692958,17.16215917,229.22,229.21,42.03]
[1738154700242,17.41313917,229.22,229.21,42.03]
[1738154700660,47.41313917,229.22,229.21,42.03]
[1738154700868,1.97050491,229.13,229.12,0.03]
[1738154701173,14.54465917,229.13,229.12,0.03]
[1738154701543,1.97050491,229.13,229.12,0.03]
[1738154703571,14.54465917,229.13,229.12,0.03]
[1738154703737,27.24430343,229.13,229.12,0.03]
[1738154704063,27.67450031,229.13,229.12,0.03]
[1738154704251,30.16761031,229.13,229.12,0.03]
[1738154704452,17.59345605,229.13,229.12,0.03]
[1738154704764,17.16325917,229.13,229.12,0.03]
[1738154709883,4.58910491,229.13,229.12,0.03]
[1738154710052,17.16325917,229.13,229.12,0.03]
[1738154715488,1.97050491,229.13,229.12,0.03]
[1738154716395,0.97050491,229.13,229.12,0.03]
[1738154716566,1.97050491,229.17,229.13,1.5652]
[1738154716754,1.97050491,229.17,229.16,12.57415426]
[1738154717759,0.97050491,229.17,229.16,12.57415426]
[1738154718086,0.97050491,229.17,229.16,16.93785426]
[1738154718781,0.97050491,229.19,229.16,40.84022826]
[1738154718990,0.97050491,229.19,229.18,12.57415426]
[1738154719166,0.97050491,229.19,229.18,18.68295426]
[1738154719357,0.97050491,229.19,229.18,42.58532826]
[1738154719762,0.97050491,229.19,229.18,42.71081826]
[1738154719965,0.97050491,229.19,229.18,47.07411826]
[1738154721162,0.97050491,229.2,229.19,23.902374]
[1738154721359,0.97050491,229.2,229.19,36.47652826]
[1738154721591,1.03350491,229.22,229.19,36.47652826]
[1738154721889,1.03350491,229.22,229.21,12.57415426]
[1738154723496,0.063,229.22,229.21,41.21579826]
[1738154723679,0.063,229.22,229.21,42.74809826]
[1738154724184,0.063,229.29,229.26,30.50196]
[1738154724390,0.063,229.29,229.28,36.85299826]
[1738154724787,0.063,229.29,229.28,36.60201826]
[1738154725188,0.063,229.29,229.28,42.96669826]
[1738154725581,0.063,229.29,229.28,47.32809826]
[1738154725777,0.063,229.3,229.29,30.25098]
[1738154725993,0.063,229.3,229.29,42.82513426]
[1738154726897,0.063,229.3,229.29,47.18633426]
[1738154728094,0.063,229.3,229.29,71.21419826]
[1738154730891,0.063,229.32,229.31,0.50196]
[1738154731091,0.063,229.32,229.31,36.85299826]
[1738154731601,0.063,229.32,229.31,41.21389826]
[1738154737503,0.063,229.36,229.35,30.50196]
[1738154737717,0.063,229.36,229.35,82.42715252]
[1738154738425,0.063,229.36,229.35,95.52715252]
[1738154738629,0.063,229.36,229.35,86.78725252]
[1738154739487,0.063,229.36,229.35,74.21309826]
[1738154739889,1.03350491,229.36,229.35,12.57415426]
[1738154740115,0.97050491,229.34,229.32,12.57415426]
[1738154740329,0.063,229.36,229.29,0.03]
[1738154740330,1.0,229.31,229.29,0.03]
[1738154740486,0.97050491,229.3,229.29,0.03]
[1738154740694,0.97050491,229.3,229.29,12.60415426]
[1738154741604,0.97050491,229.3,229.29,36.63201826]
[1738154742197,1.97050491,229.3,229.29,12.60415426]
[1738154743331,0.97050491,229.3,229.29,12.60415426]
[1738154743493,0.97050491,229.3,229.29,16.96535426]
[1738154743904,0.97050491,229.3,229.29,12.60415426]
[1738154744808,0.97050491,229.3,229.29,16.96535426]
[1738154745994,0.97050491,229.3,229.29,12.60415426]
[1738154746604,0.97050491,229.3,229.29,0.03]
[1738154748746,1.03350491,229.3,229.29,0.03]
[1738154749938,1.03350491,229.3,229.29,12.60415426]
[1738154750137,1.03350491,229.3,229.29,36.63201826]
[1738154750850,1.03350491,229.3,229.29,12.60415426]
[1738154751727,1.03350491,229.3,229.29,16.96535426]
[1738154754538,1.03350491,229.3,229.29,41.24419826]
[1738154754740,0.063,229.3,229.29,41.24419826]
[1738154756264,1.03350491,229.3,229.29,41.24419826]
[1738154757848,0.063,229.3,229.29,41.24419826]
[1738154758450,0.0001,229.3,229.29,41.24419826]
[1738154760754,0.0001,229.3,229.29,16.96535426]
[1738154760956,0.97060491,229.3,229.29,16.96535426]
[1738154761169,0.97060491,229.3,229.29,0.03]
[1738154764751,0.91307093,229.3,229.29,12.60415426]
[1738154765634,0.91307093,229.3,229.29,36.63201826]
[1738154765635,4.08834659,229.3,229.29,36.63201826]
[1738154765837,4.08834659,229.3,229.29,40.99321826]
[1738154766865,0.91307093,229.3,229.29,40.99321826]
[1738154768833,0.97607093,229.32,229.29,40.99321826]
[1738154769031,0.91307093,229.3,229.29,28.419064]
[1738154769234,0.91307093,229.3,229.29,40.99321826]
[1738154769865,0.91307093,229.3,229.29,16.96535426]
[1738154770052,1.91307093,229.3,229.29,12.60415426]
[1738154772865,1.91307093,229.3,229.29,0.03]
[1738154773358,5.09404321,229.3,229.29,0.03]
[1738154773942,5.15704321,229.3,229.29,0.03]
[1738154774865,1.97607093,229.3,229.29,0.03]
[1738154775570,5.15606098,229.3,229.29,0.03]
[1738154783561,5.15606098,229.3,229.29,8.06859427]
[1738154783877,4.15606098,229.3,229.29,8.06859427]
[1738154784077,3.24299005,229.3,229.29,8.06859427]
[1738154784373,4.15606098,229.3,229.29,8.06859427]
[1738154784570,3.24299005,229.3,229.29,8.06859427]
[1738154784947,4.15606098,229.3,229.29,32.09645827]
[1738154785279,3.24299005,229.3,229.29,32.09645827]
[1738154785463,3.24299005,229.3,229.29,66.70863827]